[Event "Titled Tuesday Blitz September 14 2021"]
[White "Timmermans, Mark"]
[Black "Demchenko, Anton"]
[WhiteFideId "1026399"]
[BlackFideId "4160258"]
[WhiteElo "2460"]
[BlackElo "2583"]
[Result "1-0"]
[Round "09"]
[TimeControl "180+1"]
[Date "2021.09.15"]
[WhiteClock "0:00:23"]
[BlackClock "0:00:04"]

1. b4 {[%clk 0:03:00]}  e6 {[%clk 0:02:51]} 2. Bb2 {[%clk 0:03:00]}  Nf6 {[%clk 0:02:51]} 3. b5 {[%clk 0:03:01]}  b6 {[%clk 0:02:42]} 4. c4 {[%clk 0:03:01]}  Bb7 {[%clk 0:02:43]} 5. e3 {[%clk 0:03:01]}  a6 {[%clk 0:02:40]} 6. a4 {[%clk 0:03:01]}  d5 {[%clk 0:02:36]} 7. Nf3 {[%clk 0:03:01]}  Nbd7 {[%clk 0:02:34]} 8. Be2 {[%clk 0:03:01]}  dxc4 {[%clk 0:02:31]} 9. Bxc4 {[%clk 0:03:02]}  axb5 {[%clk 0:02:28]} 10. axb5 {[%clk 0:03:02]}  Rxa1 {[%clk 0:02:27]} 11. Bxa1 {[%clk 0:03:03]}  Qa8 {[%clk 0:02:28]} 12. Nc3 {[%clk 0:03:03]}  Bd6 {[%clk 0:02:24]} 13. O-O {[%clk 0:03:02]}  O-O {[%clk 0:02:22]} 14. Be2 {[%clk 0:02:58]}  e5 {[%clk 0:02:09]} 15. h3 {[%clk 0:02:49]}  h6 {[%clk 0:02:09]} 16. Bb2 {[%clk 0:02:36]}  Re8 {[%clk 0:02:06]} 17. Qc2 {[%clk 0:02:27]}  Nc5 {[%clk 0:01:58]} 18. Ra1 {[%clk 0:02:24]}  Qd8 {[%clk 0:01:58]} 19. d4 {[%clk 0:02:15]}  exd4 {[%clk 0:01:58]} 20. Nxd4 {[%clk 0:02:16]}  Be5 {[%clk 0:01:52]} 21. Rd1 {[%clk 0:02:14]}  Qa8 {[%clk 0:01:50]} 22. Bf3 {[%clk 0:02:01]}  Bxd4 {[%clk 0:01:34]} 23. Bxb7 {[%clk 0:02:01]}  Qxb7 {[%clk 0:01:34]} 24. Rxd4 {[%clk 0:02:00]}  Qa8 {[%clk 0:01:29]} 25. Rd1 {[%clk 0:01:57]}  Rd8 {[%clk 0:01:23]} 26. Rxd8+ {[%clk 0:01:54]}  Qxd8 {[%clk 0:01:24]} 27. Ne2 {[%clk 0:01:55]}  Ne8 {[%clk 0:01:06]} 28. Ba3 {[%clk 0:01:52]}  Ne6 {[%clk 0:01:05]} 29. Nc3 {[%clk 0:01:25]}  Qd7 {[%clk 0:00:57]} 30. Qa4 {[%clk 0:01:03]}  f6 {[%clk 0:00:39]} 31. Qa8 {[%clk 0:00:59]}  Kf7 {[%clk 0:00:39]} 32. Bb4 {[%clk 0:00:47]}  Qd3 {[%clk 0:00:39]} 33. Qc6 {[%clk 0:00:41]}  f5 {[%clk 0:00:30]} 34. Nd5 {[%clk 0:00:27]}  Nf6 {[%clk 0:00:30]} 35. Qxe6+ {[%clk 0:00:24]}  Kxe6 {[%clk 0:00:28]} 36. Nf4+ {[%clk 0:00:25]}  Kd7 {[%clk 0:00:26]} 37. Nxd3 {[%clk 0:00:26]}  Nd5 {[%clk 0:00:23]} 38. Kf1 {[%clk 0:00:24]}  c5 {[%clk 0:00:20]} 39. bxc6+ {[%clk 0:00:23]}  Kxc6 {[%clk 0:00:21]} 40. Bf8 {[%clk 0:00:20]}  g6 {[%clk 0:00:15]} 41. Nb4+ {[%clk 0:00:20]}  Nxb4 {[%clk 0:00:13]} 42. Bxb4 {[%clk 0:00:21]}  Kd5 {[%clk 0:00:13]} 43. Bf8 {[%clk 0:00:22]}  h5 {[%clk 0:00:13]} 44. Ke2 {[%clk 0:00:23]}  Kc4 {[%clk 0:00:13]} 45. f3 {[%clk 0:00:23]}  b5 {[%clk 0:00:13]} 46. Bg7 {[%clk 0:00:22]}  b4 {[%clk 0:00:11]} 47. e4 {[%clk 0:00:23]}  fxe4 {[%clk 0:00:11]} 48. fxe4 {[%clk 0:00:24]}  b3 {[%clk 0:00:11]} 49. Ke3 {[%clk 0:00:24]}  h4 {[%clk 0:00:08]} 50. Bb2 {[%clk 0:00:24]}  g5 {[%clk 0:00:07]} 51. Bf6 {[%clk 0:00:24]}  Kc5 {[%clk 0:00:02]} 52. Kd3 {[%clk 0:00:23]}  Kb4 {[%clk 0:00:03]} 53. Bb2 {[%clk 0:00:24]}  Kb5 {[%clk 0:00:03]} 54. Kc3 {[%clk 0:00:23]}  Ka4 {[%clk 0:00:03]} 55. Kc4 {[%clk 0:00:23]}  Ka5 {[%clk 0:00:03]} 56. Kxb3 {[%clk 0:00:23]}  Kb5 {[%clk 0:00:04]} 57. Bf6 {[%clk 0:00:23]} 1-0


[Site "https://www.chess.com"]

[Event "Titled Tuesday Blitz September 14 2021"]
[White "Vakhlamov, Igor L."]
[Black "Golubev, Mikhail"]
[WhiteFideId "24126748"]
[BlackFideId "14100983"]
[WhiteElo "2416"]
[BlackElo "2374"]
[Result "1-0"]
[Round "09"]
[TimeControl "180+1"]
[Date "2021.09.15"]
[WhiteClock "0:00:59"]
[BlackClock "0:00:08"]

1. e4 {[%clk 0:02:53]}  c5 {[%clk 0:02:59]} 2. Nf3 {[%clk 0:02:53]}  d6 {[%clk 0:02:59]} 3. Nc3 {[%clk 0:02:53]}  Nc6 {[%clk 0:02:56]} 4. Bb5 {[%clk 0:02:52]}  Bd7 {[%clk 0:02:55]} 5. Bxc6 {[%clk 0:02:52]}  Bxc6 {[%clk 0:02:55]} 6. d4 {[%clk 0:02:52]}  cxd4 {[%clk 0:02:52]} 7. Qxd4 {[%clk 0:02:53]}  Nf6 {[%clk 0:02:48]} 8. Bg5 {[%clk 0:02:51]}  e6 {[%clk 0:02:48]} 9. O-O-O {[%clk 0:02:51]}  Be7 {[%clk 0:02:49]} 10. Rhe1 {[%clk 0:02:51]}  O-O {[%clk 0:02:42]} 11. e5 {[%clk 0:02:48]}  dxe5 {[%clk 0:02:41]} 12. Nxe5 {[%clk 0:02:49]}  Qxd4 {[%clk 0:02:06]} 13. Rxd4 {[%clk 0:02:50]}  Bxg2 {[%clk 0:02:06]} 14. Nd7 {[%clk 0:02:50]}  Bc6 {[%clk 0:01:38]} 15. Nxf8 {[%clk 0:02:48]}  Kxf8 {[%clk 0:01:38]} 16. h3 {[%clk 0:02:32]}  Rc8 {[%clk 0:01:36]} 17. Rd3 {[%clk 0:02:24]}  h6 {[%clk 0:01:30]} 18. Bf4 {[%clk 0:02:12]}  Ke8 {[%clk 0:01:19]} 19. a3 {[%clk 0:02:07]}  h5 {[%clk 0:01:12]} 20. Be5 {[%clk 0:01:59]}  g6 {[%clk 0:01:11]} 21. Bxf6 {[%clk 0:01:43]}  Bxf6 {[%clk 0:01:11]} 22. Ne4 {[%clk 0:01:44]}  Be7 {[%clk 0:00:51]} 23. Nd6+ {[%clk 0:01:43]}  Bxd6 {[%clk 0:00:51]} 24. Rxd6 {[%clk 0:01:43]}  Ke7 {[%clk 0:00:51]} 25. Rd4 {[%clk 0:01:41]}  g5 {[%clk 0:00:46]} 26. Kd2 {[%clk 0:01:34]}  Kf6 {[%clk 0:00:44]} 27. h4 {[%clk 0:01:26]}  gxh4 {[%clk 0:00:34]} 28. Rxh4 {[%clk 0:01:26]}  Kg5 {[%clk 0:00:34]} 29. Rd4 {[%clk 0:01:17]}  Rh8 {[%clk 0:00:31]} 30. Rg1+ {[%clk 0:01:16]}  Kf6 {[%clk 0:00:31]} 31. Rh4 {[%clk 0:01:14]}  Bf3 {[%clk 0:00:31]} 32. Rg3 {[%clk 0:01:14]}  Bc6 {[%clk 0:00:31]} 33. c4 {[%clk 0:01:11]}  a5 {[%clk 0:00:30]} 34. b4 {[%clk 0:01:11]}  axb4 {[%clk 0:00:30]} 35. axb4 {[%clk 0:01:12]}  Rd8+ {[%clk 0:00:22]} 36. Kc3 {[%clk 0:01:09]}  Rh8 {[%clk 0:00:17]} 37. Kd4 {[%clk 0:01:08]}  e5+ {[%clk 0:00:16]} 38. Kc5 {[%clk 0:01:07]}  Bd7 {[%clk 0:00:15]} 39. Kb6 {[%clk 0:01:07]}  Be6 {[%clk 0:00:14]} 40. Kxb7 {[%clk 0:01:04]}  Rd8 {[%clk 0:00:11]} 41. c5 {[%clk 0:01:01]}  Bg4 {[%clk 0:00:10]} 42. Rgxg4 {[%clk 0:00:59]}  hxg4 {[%clk 0:00:11]} 43. Rxg4 {[%clk 0:00:59]}  Kf5 {[%clk 0:00:11]} 44. Rc4 {[%clk 0:00:59]}  Rd7+ {[%clk 0:00:09]} 45. Kb6 {[%clk 0:00:59]}  Rd2 {[%clk 0:00:08]} 46. c6 {[%clk 0:00:59]} 1-0


[Site "https://www.chess.com"]

[Event "Titled Tuesday Blitz September 14 2021"]
[White "Visakh N R"]
[Black "Maly, Alexey"]
[WhiteFideId "25012223"]
[BlackFideId "14103184"]
[WhiteElo "2454"]
[BlackElo "2250"]
[Result "1/2-1/2"]
[Round "09"]
[TimeControl "180+1"]
[Date "2021.09.15"]
[WhiteClock "0:00:02"]
[BlackClock "0:00:09"]

1. d4 {[%clk 0:02:56]}  d5 {[%clk 0:02:59]} 2. c4 {[%clk 0:02:56]}  dxc4 {[%clk 0:03:00]} 3. e3 {[%clk 0:02:53]}  Nf6 {[%clk 0:03:00]} 4. Bxc4 {[%clk 0:02:53]}  e6 {[%clk 0:03:01]} 5. Nc3 {[%clk 0:02:52]}  a6 {[%clk 0:03:01]} 6. Be2 {[%clk 0:02:49]}  c5 {[%clk 0:02:58]} 7. Nf3 {[%clk 0:02:44]}  Nc6 {[%clk 0:02:57]} 8. O-O {[%clk 0:02:42]}  cxd4 {[%clk 0:02:56]} 9. exd4 {[%clk 0:02:41]}  Be7 {[%clk 0:02:56]} 10. Be3 {[%clk 0:02:35]}  Nb4 {[%clk 0:02:53]} 11. Ne5 {[%clk 0:02:30]}  Nbd5 {[%clk 0:02:51]} 12. Bg5 {[%clk 0:02:29]}  O-O {[%clk 0:02:50]} 13. Bd3 {[%clk 0:02:25]}  Bd7 {[%clk 0:02:42]} 14. Re1 {[%clk 0:02:23]}  Rc8 {[%clk 0:02:39]} 15. Rc1 {[%clk 0:02:22]}  Bc6 {[%clk 0:02:37]} 16. Nxc6 {[%clk 0:02:17]}  Rxc6 {[%clk 0:02:36]} 17. Qf3 {[%clk 0:01:55]}  Nxc3 {[%clk 0:02:21]} 18. bxc3 {[%clk 0:01:53]}  Qd5 {[%clk 0:02:13]} 19. Qg3 {[%clk 0:00:24]}  Nh5 {[%clk 0:02:07]} 20. Bxh7+ {[%clk 0:00:23]}  Kxh7 {[%clk 0:01:59]} 21. Qd3+ {[%clk 0:00:23]}  Kg8 {[%clk 0:01:50]} 22. Bxe7 {[%clk 0:00:22]}  Qxg2+ {[%clk 0:01:47]} 23. Kxg2 {[%clk 0:00:22]}  Nf4+ {[%clk 0:01:48]} 24. Kg3 {[%clk 0:00:19]}  Nxd3 {[%clk 0:01:49]} 25. Bxf8 {[%clk 0:00:19]}  Kxf8 {[%clk 0:01:42]} 26. Red1 {[%clk 0:00:16]}  Nxc1 {[%clk 0:01:40]} 27. Rxc1 {[%clk 0:00:17]}  b5 {[%clk 0:01:38]} 28. Kf4 {[%clk 0:00:17]}  Ke7 {[%clk 0:01:33]} 29. Ke4 {[%clk 0:00:17]}  Rc4 {[%clk 0:01:27]} 30. Kd3 {[%clk 0:00:17]}  Ra4 {[%clk 0:01:23]} 31. Rc2 {[%clk 0:00:17]}  Kd6 {[%clk 0:01:21]} 32. f4 {[%clk 0:00:16]}  Kd5 {[%clk 0:01:19]} 33. Re2 {[%clk 0:00:16]}  g6 {[%clk 0:01:16]} 34. h4 {[%clk 0:00:15]}  Ra3 {[%clk 0:01:14]} 35. Rb2 {[%clk 0:00:15]}  Kc6 {[%clk 0:01:06]} 36. Kd2 {[%clk 0:00:07]}  a5 {[%clk 0:01:03]} 37. Kc2 {[%clk 0:00:08]}  b4 {[%clk 0:00:55]} 38. cxb4 {[%clk 0:00:08]}  axb4 {[%clk 0:00:56]} 39. Rxb4 {[%clk 0:00:08]}  Rxa2+ {[%clk 0:00:56]} 40. Kd3 {[%clk 0:00:08]}  Rh2 {[%clk 0:00:50]} 41. Ra4 {[%clk 0:00:07]}  Rxh4 {[%clk 0:00:47]} 42. Ke3 {[%clk 0:00:08]}  Rh5 {[%clk 0:00:46]} 43. Ra7 {[%clk 0:00:07]}  Rf5 {[%clk 0:00:46]} 44. Ke4 {[%clk 0:00:07]}  Kd6 {[%clk 0:00:41]} 45. Rb7 {[%clk 0:00:07]}  Kc6 {[%clk 0:00:38]} 46. Ra7 {[%clk 0:00:07]}  Kb6 {[%clk 0:00:37]} 47. Re7 {[%clk 0:00:07]}  Kb5 {[%clk 0:00:37]} 48. Rc7 {[%clk 0:00:07]}  Kb4 {[%clk 0:00:35]} 49. Rc6 {[%clk 0:00:06]}  g5 {[%clk 0:00:30]} 50. fxg5 {[%clk 0:00:05]}  Rxg5 {[%clk 0:00:31]} 51. Rc7 {[%clk 0:00:06]}  Rf5 {[%clk 0:00:30]} 52. Rc6 {[%clk 0:00:06]}  Kb5 {[%clk 0:00:30]} 53. Rc7 {[%clk 0:00:06]}  Kb6 {[%clk 0:00:31]} 54. Rd7 {[%clk 0:00:06]}  Kc6 {[%clk 0:00:31]} 55. Re7 {[%clk 0:00:05]}  Rf1 {[%clk 0:00:29]} 56. Ra7 {[%clk 0:00:06]}  Kd6 {[%clk 0:00:29]} 57. Ra6+ {[%clk 0:00:05]}  Ke7 {[%clk 0:00:29]} 58. Ra3 {[%clk 0:00:05]}  Kf6 {[%clk 0:00:28]} 59. Re3 {[%clk 0:00:05]}  Rf5 {[%clk 0:00:27]} 60. Re2 {[%clk 0:00:05]}  Ke7 {[%clk 0:00:25]} 61. Ra2 {[%clk 0:00:05]}  Rb5 {[%clk 0:00:25]} 62. Ra7+ {[%clk 0:00:05]}  Kf6 {[%clk 0:00:25]} 63. Ra2 {[%clk 0:00:05]}  Rb4 {[%clk 0:00:25]} 64. Rf2+ {[%clk 0:00:05]}  Ke7 {[%clk 0:00:26]} 65. Rf1 {[%clk 0:00:05]}  f5+ {[%clk 0:00:25]} 66. Ke3 {[%clk 0:00:05]}  Kd6 {[%clk 0:00:25]} 67. Ra1 {[%clk 0:00:04]}  Rb3+ {[%clk 0:00:24]} 68. Ke2 {[%clk 0:00:04]}  Kd5 {[%clk 0:00:24]} 69. Ra6 {[%clk 0:00:05]}  Rb1 {[%clk 0:00:17]} 70. Ke3 {[%clk 0:00:05]}  Re1+ {[%clk 0:00:17]} 71. Kd3 {[%clk 0:00:04]}  Rd1+ {[%clk 0:00:16]} 72. Ke3 {[%clk 0:00:05]}  Re1+ {[%clk 0:00:15]} 73. Kd3 {[%clk 0:00:05]}  Re4 {[%clk 0:00:15]} 74. Ra5+ {[%clk 0:00:05]}  Kd6 {[%clk 0:00:15]} 75. Ra8 {[%clk 0:00:05]}  Ke7 {[%clk 0:00:14]} 76. Rh8 {[%clk 0:00:04]}  Kf6 {[%clk 0:00:14]} 77. Rh6+ {[%clk 0:00:04]}  Kg5 {[%clk 0:00:14]} 78. Rh8 {[%clk 0:00:04]}  Kf4 {[%clk 0:00:14]} 79. Rh4+ {[%clk 0:00:03]}  Kf3 {[%clk 0:00:14]} 80. Rh3+ {[%clk 0:00:04]}  Kg4 {[%clk 0:00:14]} 81. Rh1 {[%clk 0:00:03]}  Kg5 {[%clk 0:00:11]} 82. Rg1+ {[%clk 0:00:03]}  Kf6 {[%clk 0:00:12]} 83. Rg8 {[%clk 0:00:03]}  Kf7 {[%clk 0:00:12]} 84. Rg1 {[%clk 0:00:03]}  Rh4 {[%clk 0:00:11]} 85. Rf1 {[%clk 0:00:03]}  Kf6 {[%clk 0:00:11]} 86. Ke3 {[%clk 0:00:03]}  Rh3+ {[%clk 0:00:09]} 87. Ke2 {[%clk 0:00:03]}  Ke7 {[%clk 0:00:08]} 88. Ra1 {[%clk 0:00:02]}  Kd6 {[%clk 0:00:09]} 89. Ra5 {[%clk 0:00:03]}  Kc6 {[%clk 0:00:08]} 90. Re5 {[%clk 0:00:02]}  Kd6 {[%clk 0:00:09]} 91. Ra5 {[%clk 0:00:03]}  Rc3 {[%clk 0:00:08]} 92. Kd2 {[%clk 0:00:03]}  Rb3 {[%clk 0:00:08]} 93. Ke2 {[%clk 0:00:04]}  Rc3 {[%clk 0:00:09]} 94. Kd2 {[%clk 0:00:04]}  Rg3 {[%clk 0:00:09]} 95. Ke2 {[%clk 0:00:04]}  Rh3 {[%clk 0:00:09]} 96. Kd2 {[%clk 0:00:04]}  Ke7 {[%clk 0:00:10]} 97. d5 {[%clk 0:00:03]}  e5 {[%clk 0:00:09]} 98. Ra6 {[%clk 0:00:03]}  Kd7 {[%clk 0:00:08]} 99. Re6 {[%clk 0:00:02]}  e4 {[%clk 0:00:09]} 100. Rf6 {[%clk 0:00:02]}  Rf3 {[%clk 0:00:09]} 101. d6 {[%clk 0:00:02]}  Rd3+ {[%clk 0:00:08]} 102. Ke2 {[%clk 0:00:02]}  Rf3 {[%clk 0:00:09]} 103. Kd2 {[%clk 0:00:01]}  Kc6 {[%clk 0:00:09]} 104. Ke2 {[%clk 0:00:02]}  Kd7 {[%clk 0:00:09]} 105. Kd2 {[%clk 0:00:02]} 1/2-1/2


[Site "https://www.chess.com"]

[Event "Titled Tuesday Blitz September 14 2021"]
[White "Deac, Bogdan-Daniel"]
[Black "Suleymanli, Aydin"]
[WhiteFideId "1226380"]
[BlackFideId "13413937"]
[WhiteElo "2605"]
[BlackElo "2506"]
[Result "1-0"]
[Round "10"]
[TimeControl "180+1"]
[Date "2021.09.15"]
[WhiteClock "0:01:09"]
[BlackClock "0:00:37"]

1. e4 {[%clk 0:03:00]}  e6 {[%clk 0:03:00]} 2. d4 {[%clk 0:02:59]}  d5 {[%clk 0:03:00]} 3. Nc3 {[%clk 0:03:00]}  Bb4 {[%clk 0:03:00]} 4. Ne2 {[%clk 0:03:00]}  dxe4 {[%clk 0:02:57]} 5. a3 {[%clk 0:03:00]}  Be7 {[%clk 0:02:57]} 6. Nxe4 {[%clk 0:03:00]}  Nf6 {[%clk 0:02:57]} 7. N2g3 {[%clk 0:02:55]}  Nbd7 {[%clk 0:02:43]} 8. Bd3 {[%clk 0:02:52]}  c5 {[%clk 0:02:37]} 9. dxc5 {[%clk 0:02:30]}  Nxe4 {[%clk 0:02:32]} 10. Nxe4 {[%clk 0:02:27]}  Nxc5 {[%clk 0:02:33]} 11. Nxc5 {[%clk 0:02:23]}  Bxc5 {[%clk 0:02:33]} 12. Qg4 {[%clk 0:02:13]}  Qf6 {[%clk 0:01:50]} 13. O-O {[%clk 0:02:00]}  Bd7 {[%clk 0:01:38]} 14. Bg5 {[%clk 0:01:43]}  Qd4 {[%clk 0:01:38]} 15. Qh5 {[%clk 0:01:18]}  Bc6 {[%clk 0:00:37]} 16. Be3 {[%clk 0:01:09]} 1-0


[Site "https://www.chess.com"]

[Event "Titled Tuesday Blitz September 14 2021"]
[White "Haitin, Ilja"]
[Black "Mikhailovsky, Vladimir"]
[WhiteFideId "4501764"]
[BlackFideId "34105414"]
[WhiteElo "2218"]
[BlackElo "2414"]
[Result "0-1"]
[Round "10"]
[TimeControl "180+1"]
[Date "2021.09.15"]
[WhiteClock "0:00:03"]
[BlackClock "0:01:06"]

1. Nf3 {[%clk 0:03:00]}  e6 {[%clk 0:02:53]} 2. g3 {[%clk 0:03:01]}  b5 {[%clk 0:02:53]} 3. Bg2 {[%clk 0:03:01]}  Bb7 {[%clk 0:02:53]} 4. O-O {[%clk 0:03:02]}  Nf6 {[%clk 0:02:53]} 5. a4 {[%clk 0:03:02]}  b4 {[%clk 0:02:53]} 6. d3 {[%clk 0:03:03]}  c5 {[%clk 0:02:53]} 7. e4 {[%clk 0:03:03]}  d5 {[%clk 0:02:53]} 8. a5 {[%clk 0:03:04]}  dxe4 {[%clk 0:02:51]} 9. Ng5 {[%clk 0:03:04]}  Be7 {[%clk 0:02:44]} 10. Nxe4 {[%clk 0:03:02]}  Nxe4 {[%clk 0:02:44]} 11. dxe4 {[%clk 0:03:02]}  Qxd1 {[%clk 0:02:27]} 12. Rxd1 {[%clk 0:03:03]}  Nd7 {[%clk 0:02:28]} 13. a6 {[%clk 0:03:01]}  Bc6 {[%clk 0:02:27]} 14. Nd2 {[%clk 0:02:56]}  O-O-O {[%clk 0:02:26]} 15. Nc4 {[%clk 0:02:43]}  Nb6 {[%clk 0:01:58]} 16. Nxb6+ {[%clk 0:02:40]}  axb6 {[%clk 0:01:59]} 17. Rxd8+ {[%clk 0:02:39]}  Rxd8 {[%clk 0:02:00]} 18. Bf4 {[%clk 0:02:39]}  c4 {[%clk 0:01:38]} 19. a7 {[%clk 0:02:31]}  Kb7 {[%clk 0:01:38]} 20. Bb8 {[%clk 0:02:15]}  Ka8 {[%clk 0:01:36]} 21. e5 {[%clk 0:02:09]}  Bxg2 {[%clk 0:01:35]} 22. Kxg2 {[%clk 0:02:10]}  Rd2 {[%clk 0:01:32]} 23. Ra6 {[%clk 0:01:56]}  Bc5 {[%clk 0:01:32]} 24. Bd6 {[%clk 0:01:56]}  Bxf2 {[%clk 0:01:24]} 25. Kf3 {[%clk 0:01:52]}  Rxc2 {[%clk 0:01:19]} 26. Bxb4 {[%clk 0:01:38]}  Rxb2 {[%clk 0:01:20]} 27. Bc3 {[%clk 0:01:25]}  Rc2 {[%clk 0:01:13]} 28. Ra3 {[%clk 0:01:23]}  Bc5 {[%clk 0:01:12]} 29. Ra1 {[%clk 0:00:17]}  Rxc3+ {[%clk 0:01:08]} 30. Ke4 {[%clk 0:00:17]}  g5 {[%clk 0:01:06]} 31. Re1 {[%clk 0:00:13]}  b5 {[%clk 0:01:05]} 32. h4 {[%clk 0:00:12]}  h6 {[%clk 0:01:05]} 33. hxg5 {[%clk 0:00:13]}  hxg5 {[%clk 0:01:06]} 34. g4 {[%clk 0:00:12]}  b4 {[%clk 0:01:06]} 35. Re2 {[%clk 0:00:06]}  b3 {[%clk 0:01:06]} 36. Rd2 {[%clk 0:00:03]}  Re3# {[%clk 0:01:06]} 0-1


[Site "https://www.chess.com"]

[Event "Titled Tuesday Blitz September 14 2021"]
[White "Halkias, Stelios"]
[Black "Chigaev, Maksim"]
[WhiteFideId "4201809"]
[BlackFideId "4108116"]
[WhiteElo "2575"]
[BlackElo "2610"]
[Result "0-1"]
[Round "10"]
[TimeControl "180+1"]
[Date "2021.09.15"]
[WhiteClock "0:00:14"]
[BlackClock "0:00:16"]

1. e4 {[%clk 0:03:00]}  c5 {[%clk 0:02:54]} 2. Nf3 {[%clk 0:03:00]}  e6 {[%clk 0:02:53]} 3. d4 {[%clk 0:03:00]}  cxd4 {[%clk 0:02:54]} 4. Nxd4 {[%clk 0:03:00]}  Nc6 {[%clk 0:02:55]} 5. Nc3 {[%clk 0:03:01]}  Qc7 {[%clk 0:02:56]} 6. Be3 {[%clk 0:03:01]}  a6 {[%clk 0:02:56]} 7. Nxc6 {[%clk 0:02:59]}  bxc6 {[%clk 0:02:55]} 8. Qf3 {[%clk 0:02:55]}  Bd6 {[%clk 0:02:54]} 9. O-O-O {[%clk 0:02:55]}  Be5 {[%clk 0:02:50]} 10. Bd4 {[%clk 0:02:50]}  Bxd4 {[%clk 0:02:50]} 11. Rxd4 {[%clk 0:02:50]}  d5 {[%clk 0:02:51]} 12. Qg3 {[%clk 0:02:49]}  Qxg3 {[%clk 0:02:50]} 13. hxg3 {[%clk 0:02:50]}  Nf6 {[%clk 0:02:51]} 14. e5 {[%clk 0:02:39]}  Nd7 {[%clk 0:02:49]} 15. f4 {[%clk 0:02:35]}  h6 {[%clk 0:02:48]} 16. Be2 {[%clk 0:02:35]}  Ke7 {[%clk 0:02:46]} 17. Bf3 {[%clk 0:02:31]}  a5 {[%clk 0:02:43]} 18. Re1 {[%clk 0:02:30]}  Ba6 {[%clk 0:02:36]} 19. Rdd1 {[%clk 0:02:17]}  h5 {[%clk 0:02:23]} 20. Rh1 {[%clk 0:02:12]}  g6 {[%clk 0:02:23]} 21. Rh2 {[%clk 0:02:11]}  Rab8 {[%clk 0:01:52]} 22. Rdh1 {[%clk 0:02:02]}  Rhg8 {[%clk 0:01:52]} 23. Rh4 {[%clk 0:02:02]}  Rb4 {[%clk 0:01:46]} 24. a3 {[%clk 0:01:59]}  Rb7 {[%clk 0:01:46]} 25. g4 {[%clk 0:01:55]}  g5 {[%clk 0:01:37]} 26. Rxh5 {[%clk 0:01:48]}  gxf4 {[%clk 0:01:37]} 27. Re1 {[%clk 0:01:48]}  Rbb8 {[%clk 0:01:29]} 28. b3 {[%clk 0:01:33]}  Rh8 {[%clk 0:01:20]} 29. Be2 {[%clk 0:01:29]}  Rxh5 {[%clk 0:01:12]} 30. gxh5 {[%clk 0:01:28]}  Bxe2 {[%clk 0:01:11]} 31. Nxe2 {[%clk 0:01:28]}  f3 {[%clk 0:01:08]} 32. Nd4 {[%clk 0:01:19]}  Nxe5 {[%clk 0:00:56]} 33. gxf3 {[%clk 0:01:09]}  c5 {[%clk 0:00:51]} 34. f4 {[%clk 0:01:06]}  Nd3+ {[%clk 0:00:40]} 35. cxd3 {[%clk 0:01:04]}  cxd4 {[%clk 0:00:41]} 36. Kb2 {[%clk 0:00:48]}  Kf6 {[%clk 0:00:39]} 37. Rg1 {[%clk 0:00:46]}  Kf5 {[%clk 0:00:38]} 38. Rg7 {[%clk 0:00:46]}  f6 {[%clk 0:00:33]} 39. h6 {[%clk 0:00:46]}  Rh8 {[%clk 0:00:29]} 40. h7 {[%clk 0:00:46]}  Kxf4 {[%clk 0:00:28]} 41. b4 {[%clk 0:00:44]}  axb4 {[%clk 0:00:28]} 42. axb4 {[%clk 0:00:43]}  e5 {[%clk 0:00:29]} 43. b5 {[%clk 0:00:43]}  e4 {[%clk 0:00:30]} 44. b6 {[%clk 0:00:37]}  e3 {[%clk 0:00:29]} 45. b7 {[%clk 0:00:26]}  e2 {[%clk 0:00:24]} 46. Re7 {[%clk 0:00:24]}  Kf3 {[%clk 0:00:24]} 47. Kc2 {[%clk 0:00:15]}  Rxh7 {[%clk 0:00:21]} 48. Rxh7 {[%clk 0:00:14]}  e1=Q {[%clk 0:00:21]} 49. b8=Q {[%clk 0:00:15]}  Qc3+ {[%clk 0:00:21]} 50. Kb1 {[%clk 0:00:15]}  Qxd3+ {[%clk 0:00:22]} 51. Kb2 {[%clk 0:00:15]}  Qxh7 {[%clk 0:00:20]} 52. Qd6 {[%clk 0:00:15]}  Qf5 {[%clk 0:00:18]} 53. Qc5 {[%clk 0:00:13]}  Qe5 {[%clk 0:00:15]} 54. Kc2 {[%clk 0:00:12]}  Qe2+ {[%clk 0:00:14]} 55. Kb3 {[%clk 0:00:12]}  Qc4+ {[%clk 0:00:15]} 56. Qxc4 {[%clk 0:00:13]}  dxc4+ {[%clk 0:00:15]} 57. Kxc4 {[%clk 0:00:14]}  Ke3 {[%clk 0:00:16]} 0-1


[Site "https://www.chess.com"]

[Event "Titled Tuesday Blitz September 14 2021"]
[White "Hansen, Eric"]
[Black "Kobalia, Mikhail"]
[WhiteFideId "2606771"]
[BlackFideId "4119150"]
[WhiteElo "2568"]
[BlackElo "2626"]
[Result "1-0"]
[Round "10"]
[TimeControl "180+1"]
[Date "2021.09.15"]
[WhiteClock "0:00:04"]
[BlackClock "0:00:02"]

1. Nf3 {[%clk 0:02:53]}  d5 {[%clk 0:02:58]} 2. g3 {[%clk 0:02:53]}  c6 {[%clk 0:02:58]} 3. Bg2 {[%clk 0:02:53]}  Bg4 {[%clk 0:02:59]} 4. O-O {[%clk 0:02:53]}  Nf6 {[%clk 0:02:57]} 5. d3 {[%clk 0:02:53]}  Nbd7 {[%clk 0:02:56]} 6. Nbd2 {[%clk 0:02:54]}  e5 {[%clk 0:02:56]} 7. e4 {[%clk 0:02:54]}  Bc5 {[%clk 0:02:51]} 8. h3 {[%clk 0:02:53]}  Bh5 {[%clk 0:02:51]} 9. Qe1 {[%clk 0:02:53]}  O-O {[%clk 0:02:43]} 10. Nh4 {[%clk 0:02:52]}  dxe4 {[%clk 0:02:39]} 11. dxe4 {[%clk 0:02:51]}  a5 {[%clk 0:02:38]} 12. Ndf3 {[%clk 0:02:42]}  a4 {[%clk 0:02:33]} 13. Nf5 {[%clk 0:02:39]}  Qb6 {[%clk 0:02:31]} 14. Kh2 {[%clk 0:02:29]}  Rfe8 {[%clk 0:02:24]} 15. N3h4 {[%clk 0:02:19]}  Nf8 {[%clk 0:02:17]} 16. Bg5 {[%clk 0:02:07]}  N6d7 {[%clk 0:02:16]} 17. b3 {[%clk 0:02:02]}  Ne6 {[%clk 0:02:14]} 18. Qd2 {[%clk 0:01:57]}  Nxg5 {[%clk 0:02:04]} 19. Qxg5 {[%clk 0:01:55]}  Bg6 {[%clk 0:02:04]} 20. Qd2 {[%clk 0:01:49]}  axb3 {[%clk 0:02:02]} 21. axb3 {[%clk 0:01:42]}  Rxa1 {[%clk 0:01:58]} 22. Rxa1 {[%clk 0:01:41]}  Nf8 {[%clk 0:01:58]} 23. Rf1 {[%clk 0:01:38]}  Ne6 {[%clk 0:01:40]} 24. Qe2 {[%clk 0:01:30]}  Rd8 {[%clk 0:01:35]} 25. Kg1 {[%clk 0:01:21]}  Qb4 {[%clk 0:01:34]} 26. Rd1 {[%clk 0:01:13]}  Rxd1+ {[%clk 0:01:31]} 27. Qxd1 {[%clk 0:01:14]}  Qc3 {[%clk 0:01:24]} 28. Bf3 {[%clk 0:01:00]}  Nd4 {[%clk 0:01:05]} 29. Nxd4 {[%clk 0:00:54]}  Bxd4 {[%clk 0:01:05]} 30. Kg2 {[%clk 0:00:53]}  b5 {[%clk 0:00:50]} 31. Qe2 {[%clk 0:00:50]}  Qc5 {[%clk 0:00:43]} 32. Bg4 {[%clk 0:00:49]}  Kf8 {[%clk 0:00:39]} 33. Bf5 {[%clk 0:00:49]}  Qc3 {[%clk 0:00:35]} 34. Bxg6 {[%clk 0:00:41]}  hxg6 {[%clk 0:00:35]} 35. Nf3 {[%clk 0:00:41]}  f6 {[%clk 0:00:30]} 36. Ne1 {[%clk 0:00:40]}  c5 {[%clk 0:00:27]} 37. Nf3 {[%clk 0:00:37]}  c4 {[%clk 0:00:27]} 38. bxc4 {[%clk 0:00:37]}  Qxc4 {[%clk 0:00:27]} 39. Qd1 {[%clk 0:00:30]}  g5 {[%clk 0:00:25]} 40. h4 {[%clk 0:00:29]}  g4 {[%clk 0:00:16]} 41. Nh2 {[%clk 0:00:17]}  Bc5 {[%clk 0:00:08]} 42. Qd8+ {[%clk 0:00:16]}  Kf7 {[%clk 0:00:09]} 43. Qd7+ {[%clk 0:00:16]}  Be7 {[%clk 0:00:09]} 44. Qxg4 {[%clk 0:00:10]}  Qxc2 {[%clk 0:00:08]} 45. h5 {[%clk 0:00:11]}  b4 {[%clk 0:00:06]} 46. Qg6+ {[%clk 0:00:11]}  Kf8 {[%clk 0:00:05]} 47. Ng4 {[%clk 0:00:07]}  Bc5 {[%clk 0:00:04]} 48. h6 {[%clk 0:00:07]}  gxh6 {[%clk 0:00:04]} 49. Qxf6+ {[%clk 0:00:08]}  Ke8 {[%clk 0:00:04]} 50. Qxe5+ {[%clk 0:00:07]}  Kd8 {[%clk 0:00:04]} 51. Qf6+ {[%clk 0:00:05]}  Kc8 {[%clk 0:00:03]} 52. Qc6+ {[%clk 0:00:04]}  Kb8 {[%clk 0:00:02]} 53. Ne3 {[%clk 0:00:04]} 1-0


[Site "https://www.chess.com"]